[Event "Titled Tuesday Blitz January 31 Early 2023"]
[White "Dardha, Daniel"]
[Black "Md, Imran"]
[WhiteFideId "240990"]
[BlackFideId "25748580"]
[WhiteElo "2631"]
[BlackElo "2284"]
[Result "0-1"]
[Round "02"]
[TimeControl "180+2"]
[Date "2023.01.31"]
[WhiteClock "0:00:01"]
[BlackClock "0:00:21"]

1. Nf3 {[%clk 0:03:00]}  Nf6 {[%clk 0:02:56]} 2. c4 {[%clk 0:03:00]}  e6 {[%clk 0:02:55]} 3. Nc3 {[%clk 0:02:57]}  d5 {[%clk 0:02:55]} 4. d4 {[%clk 0:02:56]}  c6 {[%clk 0:02:55]} 5. Qd3 {[%clk 0:02:51]}  Nbd7 {[%clk 0:02:52]} 6. e4 {[%clk 0:02:48]}  dxe4 {[%clk 0:02:52]} 7. Nxe4 {[%clk 0:02:49]}  Nxe4 {[%clk 0:02:49]} 8. Qxe4 {[%clk 0:02:49]}  Nf6 {[%clk 0:02:49]} 9. Qc2 {[%clk 0:02:47]}  Bb4+ {[%clk 0:02:49]} 10. Bd2 {[%clk 0:02:46]}  Qa5 {[%clk 0:02:48]} 11. c5 {[%clk 0:02:34]}  O-O {[%clk 0:02:45]} 12. a3 {[%clk 0:02:26]}  Bxd2+ {[%clk 0:02:42]} 13. Qxd2 {[%clk 0:02:27]}  Qxd2+ {[%clk 0:02:41]} 14. Kxd2 {[%clk 0:02:24]}  Rd8 {[%clk 0:02:42]} 15. Bd3 {[%clk 0:02:21]}  e5 {[%clk 0:02:25]} 16. dxe5 {[%clk 0:02:09]}  Bf5 {[%clk 0:02:05]} 17. exf6 {[%clk 0:01:57]}  Rxd3+ {[%clk 0:02:02]} 18. Kc1 {[%clk 0:01:37]}  gxf6 {[%clk 0:01:39]} 19. Rd1 {[%clk 0:01:36]}  Rad8 {[%clk 0:01:37]} 20. Rxd3 {[%clk 0:01:36]}  Rxd3 {[%clk 0:01:37]} 21. b4 {[%clk 0:01:29]}  a5 {[%clk 0:00:58]} 22. bxa5 {[%clk 0:00:41]}  Rc3+ {[%clk 0:00:48]} 23. Kd2 {[%clk 0:00:41]}  Rxc5 {[%clk 0:00:46]} 24. Re1 {[%clk 0:00:34]}  Rxa5 {[%clk 0:00:38]} 25. Re7 {[%clk 0:00:31]}  b6 {[%clk 0:00:33]} 26. Rb7 {[%clk 0:00:30]}  b5 {[%clk 0:00:27]} 27. Nd4 {[%clk 0:00:28]}  Be4 {[%clk 0:00:26]} 28. f3 {[%clk 0:00:28]}  Bd5 {[%clk 0:00:24]} 29. Rb8+ {[%clk 0:00:14]}  Kg7 {[%clk 0:00:23]} 30. h4 {[%clk 0:00:13]}  h5 {[%clk 0:00:23]} 31. Nf5+ {[%clk 0:00:13]}  Kh7 {[%clk 0:00:23]} 32. Ke3 {[%clk 0:00:06]}  Rxa3+ {[%clk 0:00:23]} 33. Kf4 {[%clk 0:00:06]}  Ra4+ {[%clk 0:00:23]} 34. Ke3 {[%clk 0:00:06]}  Be6 {[%clk 0:00:20]} 35. Nd4 {[%clk 0:00:05]}  Rc4 {[%clk 0:00:20]} 36. Rb7 {[%clk 0:00:05]}  Rc3+ {[%clk 0:00:20]} 37. Kd2 {[%clk 0:00:05]}  Bc8 {[%clk 0:00:15]} 38. Rxf7+ {[%clk 0:00:04]}  Kg6 {[%clk 0:00:16]} 39. Rc7 {[%clk 0:00:04]}  Rc4 {[%clk 0:00:16]} 40. Ke3 {[%clk 0:00:03]}  c5 {[%clk 0:00:13]} 41. Nc6 {[%clk 0:00:02]}  Bf5 {[%clk 0:00:12]} 42. Ne7+ {[%clk 0:00:01]}  Kf7 {[%clk 0:00:12]} 43. Nxf5+ {[%clk 0:00:02]}  Ke6 {[%clk 0:00:13]} 44. Ng7+ {[%clk 0:00:02]}  Kd6 {[%clk 0:00:13]} 45. Rb7 {[%clk 0:00:03]}  Rc3+ {[%clk 0:00:14]} 46. Kd2 {[%clk 0:00:03]}  b4 {[%clk 0:00:15]} 47. Nf5+ {[%clk 0:00:03]}  Ke5 {[%clk 0:00:15]} 48. g4 {[%clk 0:00:03]}  Rxf3 {[%clk 0:00:15]} 49. Re7+ {[%clk 0:00:03]}  Kf4 {[%clk 0:00:15]} 50. gxh5 {[%clk 0:00:01]}  Kxf5 {[%clk 0:00:15]} 51. h6 {[%clk 0:00:02]}  Rh3 {[%clk 0:00:15]} 52. h7 {[%clk 0:00:02]}  Rxh4 {[%clk 0:00:15]} 53. Rg7 {[%clk 0:00:02]}  Ke5 {[%clk 0:00:15]} 54. Ke3 {[%clk 0:00:02]}  c4 {[%clk 0:00:16]} 55. Kf3 {[%clk 0:00:03]}  Rh3+ {[%clk 0:00:16]} 56. Kg2 {[%clk 0:00:03]}  Rh6 {[%clk 0:00:17]} 57. Kf3 {[%clk 0:00:01]}  c3 {[%clk 0:00:17]} 58. Re7+ {[%clk 0:00:02]}  Kf5 {[%clk 0:00:18]} 59. Rc7 {[%clk 0:00:01]}  Kg6 {[%clk 0:00:17]} 60. Rc4 {[%clk 0:00:01]}  Rxh7 {[%clk 0:00:17]} 61. Rxb4 {[%clk 0:00:01]}  Rc7 {[%clk 0:00:18]} 62. Rb1 {[%clk 0:00:01]}  c2 {[%clk 0:00:19]} 63. Rg1+ {[%clk 0:00:02]}  Kf7 {[%clk 0:00:19]} 64. Rc1 {[%clk 0:00:02]}  f5 {[%clk 0:00:20]} 65. Ke3 {[%clk 0:00:03]}  Kf6 {[%clk 0:00:21]} 66. Kd2 {[%clk 0:00:04]}  f4 {[%clk 0:00:21]} 67. Rf1 {[%clk 0:00:01]}  Kf5 {[%clk 0:00:22]} 68. Kc1 {[%clk 0:00:01]}  Rc3 {[%clk 0:00:21]} 69. Rg1 {[%clk 0:00:01]}  f3 {[%clk 0:00:21]} 70. Rg8 {[%clk 0:00:01]}  Ke4 {[%clk 0:00:22]} 71. Rc8 {[%clk 0:00:01]}  Rxc8 {[%clk 0:00:21]} 0-1


[Site "https://www.chess.com"]

[Event "Titled Tuesday Blitz January 31 Early 2023"]
[White "Vovk, Orest"]
[Black "Babazada, Khazar"]
[WhiteFideId "14113490"]
[BlackFideId "13413554"]
[WhiteElo "2315"]
[BlackElo "2474"]
[Result "0-1"]
[Round "02"]
[TimeControl "180+2"]
[Date "2023.01.31"]
[WhiteClock "0:00:03"]
[BlackClock "0:01:08"]

1. h4 {[%clk 0:03:00]}  e5 {[%clk 0:02:54]} 2. h5 {[%clk 0:02:58]}  d5 {[%clk 0:02:54]} 3. h6 {[%clk 0:02:54]}  Nxh6 {[%clk 0:02:54]} 4. d4 {[%clk 0:02:54]}  Nf5 {[%clk 0:02:40]} 5. dxe5 {[%clk 0:02:53]}  Nc6 {[%clk 0:02:40]} 6. Nf3 {[%clk 0:02:49]}  Be6 {[%clk 0:02:41]} 7. Nbd2 {[%clk 0:02:38]}  Bc5 {[%clk 0:02:09]} 8. e4 {[%clk 0:02:37]}  Bxf2+ {[%clk 0:02:01]} 9. Kxf2 {[%clk 0:02:33]}  dxe4 {[%clk 0:02:01]} 10. Bb5 {[%clk 0:02:21]}  exf3 {[%clk 0:01:49]} 11. Nxf3 {[%clk 0:02:16]}  Qe7 {[%clk 0:01:49]} 12. Bxc6+ {[%clk 0:02:09]}  bxc6 {[%clk 0:01:50]} 13. Qd3 {[%clk 0:02:06]}  Qc5+ {[%clk 0:01:42]} 14. Be3 {[%clk 0:02:03]}  Nxe3 {[%clk 0:01:42]} 15. Qxe3 {[%clk 0:02:03]}  Qxc2+ {[%clk 0:01:40]} 16. Kg3 {[%clk 0:02:02]}  h5 {[%clk 0:01:38]} 17. Rac1 {[%clk 0:01:57]}  Qxb2 {[%clk 0:01:38]} 18. Rxc6 {[%clk 0:01:55]}  Rh6 {[%clk 0:01:36]} 19. Nh4 {[%clk 0:01:35]}  Rd8 {[%clk 0:01:30]} 20. Rxc7 {[%clk 0:01:22]}  Rd4 {[%clk 0:01:25]} 21. Rh3 {[%clk 0:00:23]}  Rg6+ {[%clk 0:01:21]} 22. Kh2 {[%clk 0:00:08]}  Rxh4 {[%clk 0:01:21]} 23. Re7+ {[%clk 0:00:08]}  Kf8 {[%clk 0:01:16]} 24. Rxf7+ {[%clk 0:00:04]}  Bxf7 {[%clk 0:01:09]} 25. Qa3+ {[%clk 0:00:03]}  Qxa3 {[%clk 0:01:08]} 0-1


[Site "https://www.chess.com"]

[Event "Titled Tuesday Blitz January 31 Early 2023"]
[White "Movahed, Sina"]
[Black "Pein, Jonathan"]
[WhiteFideId "42520835"]
[BlackFideId "417092"]
[WhiteElo "2340"]
[BlackElo "2265"]
[Result "0-1"]
[Round "02"]
[TimeControl "180+2"]
[Date "2023.01.31"]
[WhiteClock "0:00:09"]
[BlackClock "0:00:07"]

1. e4 {[%clk 0:03:00]}  e5 {[%clk 0:02:59]} 2. Nf3 {[%clk 0:03:00]}  d6 {[%clk 0:03:00]} 3. d4 {[%clk 0:02:59]}  exd4 {[%clk 0:03:01]} 4. Nxd4 {[%clk 0:03:00]}  Nf6 {[%clk 0:03:01]} 5. Nc3 {[%clk 0:03:00]}  g6 {[%clk 0:03:02]} 6. Bc4 {[%clk 0:03:01]}  Bg7 {[%clk 0:03:02]} 7. O-O {[%clk 0:03:01]}  O-O {[%clk 0:03:03]} 8. Re1 {[%clk 0:03:01]}  Re8 {[%clk 0:03:03]} 9. Bb3 {[%clk 0:03:00]}  Nbd7 {[%clk 0:03:03]} 10. Bg5 {[%clk 0:02:57]}  h6 {[%clk 0:03:03]} 11. Bh4 {[%clk 0:02:57]}  Nc5 {[%clk 0:03:04]} 12. f3 {[%clk 0:02:52]}  Nxb3 {[%clk 0:03:03]} 13. axb3 {[%clk 0:02:52]}  g5 {[%clk 0:02:45]} 14. Bf2 {[%clk 0:02:51]}  Nh5 {[%clk 0:02:39]} 15. Qd2 {[%clk 0:02:39]}  Nf4 {[%clk 0:02:36]} 16. Rad1 {[%clk 0:02:38]}  Bd7 {[%clk 0:02:31]} 17. Nce2 {[%clk 0:02:30]}  Be5 {[%clk 0:02:21]} 18. Ng3 {[%clk 0:02:28]}  Qf6 {[%clk 0:02:17]} 19. Ndf5 {[%clk 0:01:59]}  h5 {[%clk 0:02:08]} 20. Bd4 {[%clk 0:01:53]}  h4 {[%clk 0:01:58]} 21. Bxe5 {[%clk 0:01:51]}  Rxe5 {[%clk 0:01:59]} 22. Ne2 {[%clk 0:01:44]}  Nxe2+ {[%clk 0:01:56]} 23. Rxe2 {[%clk 0:01:43]}  Bxf5 {[%clk 0:01:56]} 24. exf5 {[%clk 0:01:43]}  Rae8 {[%clk 0:01:30]} 25. Rxe5 {[%clk 0:01:39]}  Rxe5 {[%clk 0:01:30]} 26. f4 {[%clk 0:01:37]}  Rxf5 {[%clk 0:01:17]} 27. fxg5 {[%clk 0:01:37]}  Qxg5 {[%clk 0:01:18]} 28. Qd3 {[%clk 0:01:33]}  Qf4 {[%clk 0:01:10]} 29. Qd4 {[%clk 0:01:28]}  a6 {[%clk 0:00:47]} 30. h3 {[%clk 0:01:13]}  Kh7 {[%clk 0:00:24]} 31. Qa7 {[%clk 0:00:58]}  Rg5 {[%clk 0:00:14]} 32. Qxb7 {[%clk 0:00:53]}  d5 {[%clk 0:00:14]} 33. Rf1 {[%clk 0:00:42]}  Qe3+ {[%clk 0:00:12]} 34. Kh1 {[%clk 0:00:32]}  Rxg2 {[%clk 0:00:08]} 35. Rxf7+ {[%clk 0:00:21]}  Kg8 {[%clk 0:00:05]} 36. Kxg2 {[%clk 0:00:16]}  Qg3+ {[%clk 0:00:05]} 37. Kf1 {[%clk 0:00:16]}  Kxf7 {[%clk 0:00:05]} 38. Qxd5+ {[%clk 0:00:15]}  Ke7 {[%clk 0:00:05]} 39. Qg2 {[%clk 0:00:16]}  Qf4+ {[%clk 0:00:04]} 40. Qf2 {[%clk 0:00:16]}  Qg5 {[%clk 0:00:02]} 41. Qe1+ {[%clk 0:00:16]}  Kd7 {[%clk 0:00:02]} 42. Qf2 {[%clk 0:00:17]}  Qc1+ {[%clk 0:00:02]} 43. Kg2 {[%clk 0:00:17]}  Qxb2 {[%clk 0:00:03]} 44. Qf5+ {[%clk 0:00:18]}  Kd8 {[%clk 0:00:03]} 45. Kf3 {[%clk 0:00:18]}  Qd4 {[%clk 0:00:03]} 46. Qe4 {[%clk 0:00:18]}  Qc3+ {[%clk 0:00:03]} 47. Kg4 {[%clk 0:00:18]}  Qg7+ {[%clk 0:00:03]} 48. Kxh4 {[%clk 0:00:18]}  Qh6+ {[%clk 0:00:04]} 49. Kg3 {[%clk 0:00:18]}  Qg7+ {[%clk 0:00:05]} 50. Qg4 {[%clk 0:00:19]}  Qc3+ {[%clk 0:00:06]} 51. Kh4 {[%clk 0:00:19]}  Qxc2 {[%clk 0:00:07]} 52. b4 {[%clk 0:00:19]}  Qh7+ {[%clk 0:00:06]} 53. Kg5 {[%clk 0:00:18]}  Qg7+ {[%clk 0:00:06]} 54. Kh4 {[%clk 0:00:19]}  Qe7+ {[%clk 0:00:06]} 55. Qg5 {[%clk 0:00:18]}  c5 {[%clk 0:00:06]} 56. bxc5 {[%clk 0:00:09]}  a5 {[%clk 0:00:06]} 57. c6 {[%clk 0:00:09]}  Qxg5+ {[%clk 0:00:06]} 58. Kxg5 {[%clk 0:00:09]}  a4 {[%clk 0:00:07]} 59. h4 {[%clk 0:00:09]}  a3 {[%clk 0:00:07]} 0-1


[Site "https://www.chess.com"]

[Event "Titled Tuesday Blitz January 31 Early 2023"]
[White "Tymrakiewicz, Rafal"]
[Black "Avila Pavas, Santiago"]
[WhiteFideId "1108832"]
[BlackFideId "4437128"]
[WhiteElo "2144"]
[BlackElo "2522"]
[Result "0-1"]
[Round "02"]
[TimeControl "180+2"]
[Date "2023.01.31"]
[WhiteClock "0:00:16"]
[BlackClock "0:00:36"]

1. d4 {[%clk 0:02:56]}  Nf6 {[%clk 0:03:00]} 2. Bg5 {[%clk 0:02:55]}  e6 {[%clk 0:02:59]} 3. Nd2 {[%clk 0:02:54]}  d5 {[%clk 0:02:59]} 4. e3 {[%clk 0:02:55]}  Bd6 {[%clk 0:02:56]} 5. Bd3 {[%clk 0:02:55]}  Nbd7 {[%clk 0:02:56]} 6. f4 {[%clk 0:02:52]}  h6 {[%clk 0:02:56]} 7. Bh4 {[%clk 0:02:52]}  g5 {[%clk 0:02:56]} 8. fxg5 {[%clk 0:02:52]}  hxg5 {[%clk 0:02:56]} 9. Bxg5 {[%clk 0:02:51]}  Bxh2 {[%clk 0:02:56]} 10. Ngf3 {[%clk 0:02:50]}  Bg3+ {[%clk 0:02:56]} 11. Ke2 {[%clk 0:02:50]}  Rg8 {[%clk 0:02:54]} 12. Rh3 {[%clk 0:02:42]}  Bd6 {[%clk 0:02:54]} 13. Qh1 {[%clk 0:02:42]}  e5 {[%clk 0:02:38]} 14. dxe5 {[%clk 0:02:40]}  Nxe5 {[%clk 0:02:36]} 15. Rh8 {[%clk 0:02:41]}  Rf8 {[%clk 0:01:58]} 16. Rf1 {[%clk 0:02:22]}  Bg4 {[%clk 0:01:24]} 17. Qh6 {[%clk 0:02:16]}  Ned7 {[%clk 0:01:21]} 18. Ke1 {[%clk 0:02:00]}  Qe7 {[%clk 0:01:21]} 19. Rxf8+ {[%clk 0:01:40]}  Qxf8 {[%clk 0:01:21]} 20. Qh4 {[%clk 0:01:32]}  Qg7 {[%clk 0:01:07]} 21. Nd4 {[%clk 0:01:28]}  Bg3+ {[%clk 0:00:57]} 22. Qxg3 {[%clk 0:01:24]}  Qxg5 {[%clk 0:00:57]} 23. Rf5 {[%clk 0:00:40]}  Qh6 {[%clk 0:00:54]} 24. Qxc7 {[%clk 0:00:36]}  Qxe3+ {[%clk 0:00:51]} 25. Ne2 {[%clk 0:00:34]}  Bxf5 {[%clk 0:00:47]} 26. Bxf5 {[%clk 0:00:33]}  Rd8 {[%clk 0:00:40]} 27. Nf3 {[%clk 0:00:33]}  Qb6 {[%clk 0:00:39]} 28. Qh2 {[%clk 0:00:30]}  Qxb2 {[%clk 0:00:38]} 29. Ned4 {[%clk 0:00:28]}  Qc1+ {[%clk 0:00:38]} 30. Ke2 {[%clk 0:00:27]}  Ke7 {[%clk 0:00:38]} 31. Bd3 {[%clk 0:00:21]}  Re8 {[%clk 0:00:37]} 32. Nf5+ {[%clk 0:00:20]}  Kd8+ {[%clk 0:00:37]} 33. Kf2 {[%clk 0:00:19]}  Ng4+ {[%clk 0:00:36]} 34. Kg3 {[%clk 0:00:18]}  Nxh2 {[%clk 0:00:37]} 35. Kxh2 {[%clk 0:00:19]}  Qf4+ {[%clk 0:00:37]} 36. Kg1 {[%clk 0:00:17]}  Ne5 {[%clk 0:00:35]} 37. Nxe5 {[%clk 0:00:16]}  Rxe5 {[%clk 0:00:36]} 0-1


[Site "https://www.chess.com"]

[Event "Titled Tuesday Blitz January 31 Early 2023"]
[White "Trigo Urquijo, Sergio"]
[Black "De Silva, L M S T"]
[WhiteFideId "2262436"]
[BlackFideId "9953698"]
[WhiteElo "2408"]
[BlackElo "2452"]
[Result "0-1"]
[Round "02"]
[TimeControl "180+2"]
[Date "2023.01.31"]
[WhiteClock "0:00:34"]
[BlackClock "0:00:34"]

1. Nf3 {[%clk 0:03:00]}  Nf6 {[%clk 0:02:58]} 2. g3 {[%clk 0:02:58]}  b5 {[%clk 0:02:57]} 3. Bg2 {[%clk 0:02:57]}  Bb7 {[%clk 0:02:57]} 4. O-O {[%clk 0:02:58]}  e6 {[%clk 0:02:57]} 5. b3 {[%clk 0:02:55]}  d5 {[%clk 0:02:55]} 6. Bb2 {[%clk 0:02:56]}  Be7 {[%clk 0:02:56]} 7. d3 {[%clk 0:02:54]}  c5 {[%clk 0:02:54]} 8. Nbd2 {[%clk 0:02:55]}  O-O {[%clk 0:02:50]} 9. Ne5 {[%clk 0:02:53]}  Nbd7 {[%clk 0:02:47]} 10. e4 {[%clk 0:02:50]}  d4 {[%clk 0:02:46]} 11. Nxd7 {[%clk 0:02:46]}  Nxd7 {[%clk 0:02:46]} 12. a4 {[%clk 0:02:47]}  a6 {[%clk 0:02:45]} 13. Qe2 {[%clk 0:02:47]}  Qc7 {[%clk 0:02:44]} 14. f4 {[%clk 0:02:38]}  e5 {[%clk 0:02:29]} 15. f5 {[%clk 0:02:27]}  Bg5 {[%clk 0:02:28]} 16. Kh1 {[%clk 0:02:23]}  Bxd2 {[%clk 0:02:27]} 17. Qxd2 {[%clk 0:02:23]}  c4 {[%clk 0:02:28]} 18. Bc1 {[%clk 0:02:12]}  f6 {[%clk 0:02:23]} 19. g4 {[%clk 0:02:08]}  Rfc8 {[%clk 0:02:23]} 20. g5 {[%clk 0:02:06]}  cxd3 {[%clk 0:02:21]} 21. cxd3 {[%clk 0:02:07]}  Nc5 {[%clk 0:02:15]} 22. Qd1 {[%clk 0:02:03]}  bxa4 {[%clk 0:02:11]} 23. bxa4 {[%clk 0:02:02]}  Bc6 {[%clk 0:02:05]} 24. Rg1 {[%clk 0:01:57]}  Bxa4 {[%clk 0:01:47]} 25. Rxa4 {[%clk 0:01:53]}  Nxa4 {[%clk 0:01:48]} 26. Qxa4 {[%clk 0:01:53]}  Qxc1 {[%clk 0:01:47]} 27. gxf6 {[%clk 0:01:48]}  Qc2 {[%clk 0:01:25]} 28. Qd7 {[%clk 0:01:40]}  Qc7 {[%clk 0:01:24]} 29. Qd5+ {[%clk 0:01:36]}  Qf7 {[%clk 0:01:24]} 30. Qxe5 {[%clk 0:01:32]}  Qxf6 {[%clk 0:01:22]} 31. Qd5+ {[%clk 0:01:28]}  Kh8 {[%clk 0:01:20]} 32. Bh3 {[%clk 0:01:17]}  a5 {[%clk 0:01:12]} 33. e5 {[%clk 0:01:09]}  Qc6 {[%clk 0:01:10]} 34. Qxc6 {[%clk 0:01:08]}  Rxc6 {[%clk 0:01:11]} 35. Bg2 {[%clk 0:01:09]}  Rca6 {[%clk 0:01:10]} 36. Bxa8 {[%clk 0:01:06]}  Rxa8 {[%clk 0:01:11]} 37. Kg2 {[%clk 0:01:07]}  Re8 {[%clk 0:01:04]} 38. Re1 {[%clk 0:01:03]}  a4 {[%clk 0:01:04]} 39. Kf3 {[%clk 0:01:03]}  a3 {[%clk 0:01:04]} 40. Ke4 {[%clk 0:01:04]}  Ra8 {[%clk 0:01:00]} 41. Ra1 {[%clk 0:01:02]}  Ra4 {[%clk 0:00:59]} 42. Ra2 {[%clk 0:00:59]}  Kg8 {[%clk 0:00:57]} 43. Kd5 {[%clk 0:00:59]}  Kf7 {[%clk 0:00:58]} 44. Kd6 {[%clk 0:00:59]}  g6 {[%clk 0:00:55]} 45. fxg6+ {[%clk 0:00:56]}  hxg6 {[%clk 0:00:56]} 46. Rf2+ {[%clk 0:00:56]}  Ke8 {[%clk 0:00:56]} 47. Ra2 {[%clk 0:00:57]}  g5 {[%clk 0:00:54]} 48. h3 {[%clk 0:00:56]}  Ra5 {[%clk 0:00:48]} 49. e6 {[%clk 0:00:54]}  Kd8 {[%clk 0:00:41]} 50. e7+ {[%clk 0:00:50]}  Ke8 {[%clk 0:00:40]} 51. Ke6 {[%clk 0:00:50]}  Ra6+ {[%clk 0:00:37]} 52. Kf5 {[%clk 0:00:47]}  Kxe7 {[%clk 0:00:36]} 53. Kxg5 {[%clk 0:00:47]}  Kd6 {[%clk 0:00:36]} 54. h4 {[%clk 0:00:46]}  Kc5 {[%clk 0:00:37]} 55. h5 {[%clk 0:00:47]}  Kb4 {[%clk 0:00:37]} 56. h6 {[%clk 0:00:47]}  Kb3 {[%clk 0:00:38]} 57. Ra1 {[%clk 0:00:43]}  a2 {[%clk 0:00:37]} 58. h7 {[%clk 0:00:42]}  Ra8 {[%clk 0:00:38]} 59. Kg6 {[%clk 0:00:35]}  Kb2 {[%clk 0:00:36]} 60. Rf1 {[%clk 0:00:34]}  a1=Q {[%clk 0:00:34]} 0-1


[Site "https://www.chess.com"]

[Event "Titled Tuesday Blitz January 31 Early 2023"]
[White "Sipila, Vilka"]
[Black "Lauridsen, Jesper Morch"]
[WhiteFideId "505455"]
[BlackFideId "1401890"]
[WhiteElo "2427"]
[BlackElo "2309"]
[Result "1-0"]
[Round "02"]
[TimeControl "180+2"]
[Date "2023.01.31"]
[WhiteClock "0:01:35"]
[BlackClock "0:00:10"]

1. b3 {[%clk 0:02:54]}  a5 {[%clk 0:02:57]} 2. Bb2 {[%clk 0:02:55]}  a4 {[%clk 0:02:57]} 3. b4 {[%clk 0:02:56]}  e5 {[%clk 0:02:55]} 4. a3 {[%clk 0:02:56]}  f6 {[%clk 0:02:51]} 5. e3 {[%clk 0:02:56]}  d5 {[%clk 0:02:49]} 6. c4 {[%clk 0:02:54]}  Be6 {[%clk 0:02:46]} 7. c5 {[%clk 0:02:44]}  d4 {[%clk 0:02:42]} 8. Nf3 {[%clk 0:02:42]}  Nc6 {[%clk 0:02:35]} 9. Bb5 {[%clk 0:02:40]}  Bb3 {[%clk 0:02:16]} 10. Qe2 {[%clk 0:02:39]}  dxe3 {[%clk 0:01:46]} 11. fxe3 {[%clk 0:02:37]}  Nh6 {[%clk 0:01:41]} 12. d4 {[%clk 0:02:36]}  Qe7 {[%clk 0:01:19]} 13. dxe5 {[%clk 0:02:30]}  O-O-O {[%clk 0:01:05]} 14. Bxc6 {[%clk 0:02:30]}  bxc6 {[%clk 0:01:05]} 15. Qa6+ {[%clk 0:02:21]}  Kb8 {[%clk 0:01:04]} 16. Nbd2 {[%clk 0:02:18]}  Ng4 {[%clk 0:00:49]} 17. Nxb3 {[%clk 0:02:00]}  axb3 {[%clk 0:00:49]} 18. Qxc6 {[%clk 0:02:00]}  Qd7 {[%clk 0:00:20]} 19. Qxd7 {[%clk 0:02:00]}  Rxd7 {[%clk 0:00:20]} 20. Ke2 {[%clk 0:02:01]}  fxe5 {[%clk 0:00:18]} 21. Nxe5 {[%clk 0:02:02]}  Nxe5 {[%clk 0:00:18]} 22. Bxe5 {[%clk 0:02:02]}  Be7 {[%clk 0:00:18]} 23. Rhd1 {[%clk 0:01:58]}  Rhd8 {[%clk 0:00:17]} 24. Rxd7 {[%clk 0:01:58]}  Rxd7 {[%clk 0:00:17]} 25. Rb1 {[%clk 0:01:54]}  Bg5 {[%clk 0:00:14]} 26. Rxb3 {[%clk 0:01:53]}  Re7 {[%clk 0:00:15]} 27. Bd4 {[%clk 0:01:52]}  Kb7 {[%clk 0:00:15]} 28. b5 {[%clk 0:01:51]}  h5 {[%clk 0:00:14]} 29. c6+ {[%clk 0:01:50]}  Kb8 {[%clk 0:00:14]} 30. Bc5 {[%clk 0:01:45]}  Rf7 {[%clk 0:00:13]} 31. Rb4 {[%clk 0:01:39]}  h4 {[%clk 0:00:13]} 32. Re4 {[%clk 0:01:37]}  Rf8 {[%clk 0:00:10]} 33. Bxf8 {[%clk 0:01:35]} 1-0


[Site "https://www.chess.com"]

[Event "Titled Tuesday Blitz January 31 Early 2023"]
[White "Royal, Shreyas"]
[Black "Cueto, Jonny"]
[WhiteFideId "448869"]
[BlackFideId "3300145"]
[WhiteElo "2438"]
[BlackElo "2122"]
[Result "1-0"]
[Round "02"]
[TimeControl "180+2"]
[Date "2023.01.31"]
[WhiteClock "0:01:45"]
[BlackClock "0:00:03"]

1. e4 {[%clk 0:03:00]}  e6 {[%clk 0:02:36]} 2. d4 {[%clk 0:03:00]}  d5 {[%clk 0:02:36]} 3. Nd2 {[%clk 0:03:00]}  Nc6 {[%clk 0:02:15]} 4. Ngf3 {[%clk 0:02:58]}  Nf6 {[%clk 0:02:15]} 5. exd5 {[%clk 0:02:56]}  exd5 {[%clk 0:02:14]} 6. Bb5 {[%clk 0:02:57]}  Bd6 {[%clk 0:02:12]} 7. O-O {[%clk 0:02:56]}  O-O {[%clk 0:02:12]} 8. Nb3 {[%clk 0:02:56]}  Bg4 {[%clk 0:01:55]} 9. h3 {[%clk 0:02:53]}  Bh5 {[%clk 0:01:53]} 10. Bg5 {[%clk 0:02:49]}  h6 {[%clk 0:01:44]} 11. Bh4 {[%clk 0:02:46]}  g5 {[%clk 0:01:29]} 12. Bg3 {[%clk 0:02:45]}  Bxg3 {[%clk 0:01:29]} 13. fxg3 {[%clk 0:02:46]}  Ne4 {[%clk 0:01:30]} 14. g4 {[%clk 0:02:43]}  Bg6 {[%clk 0:01:29]} 15. Bxc6 {[%clk 0:02:43]}  bxc6 {[%clk 0:01:29]} 16. Ne5 {[%clk 0:02:43]}  Qd6 {[%clk 0:01:26]} 17. Qf3 {[%clk 0:02:37]}  a5 {[%clk 0:01:16]} 18. a4 {[%clk 0:02:34]}  Kg7 {[%clk 0:00:39]} 19. Rfe1 {[%clk 0:02:28]}  f5 {[%clk 0:00:28]} 20. Nxg6 {[%clk 0:02:20]}  Qxg6 {[%clk 0:00:27]} 21. gxf5 {[%clk 0:02:10]}  Rxf5 {[%clk 0:00:28]} 22. Qg4 {[%clk 0:02:10]}  Raf8 {[%clk 0:00:24]} 23. Nc5 {[%clk 0:02:08]}  R8f6 {[%clk 0:00:12]} 24. Nxe4 {[%clk 0:02:03]}  dxe4 {[%clk 0:00:12]} 25. Rxe4 {[%clk 0:02:04]}  h5 {[%clk 0:00:10]} 26. Qe2 {[%clk 0:02:04]}  Rf2 {[%clk 0:00:09]} 27. Qe3 {[%clk 0:01:56]}  g4 {[%clk 0:00:05]} 28. Re7+ {[%clk 0:01:54]}  Rf7 {[%clk 0:00:04]} 29. Qe5+ {[%clk 0:01:49]}  Kh7 {[%clk 0:00:03]} 30. Re8 {[%clk 0:01:47]}  g3 {[%clk 0:00:03]} 31. Rh8# {[%clk 0:01:45]} 1-0


[Site "https://www.chess.com"]